[Event "Moscow Open RSSU Cup 2020"]
[Site "Moscow"]
[Date "2020.01.29"]
[Round "5.14"]
[White "Bodnaruk, Anastasia"]
[Black "Kovanova, Baira"]
[Result "1-0"]
[ECO "C95"]
[WhiteElo "2411"]
[BlackElo "2335"]
[Annotator "NA"]
[PlyCount "111"]
[EventDate "2020.01.25"]
[EventType "swiss"]
[EventCountry "RUS"]
[SourceTitle "playchess.com"]
[Source "ChessBase"]
[SourceQuality "1"]
[TimeControl "40/5400+30:1800+30"]

1. e4 {[%emt 0:00:00]} e5 {[%emt 0:00:00]} 2. Nf3 {[%emt 0:00:00]} Nc6 {[%emt 0:00:00]} 3. Bb5 {[%emt 0:00:00]} a6 {[%emt 0:00:00]} 4. Ba4 {[%emt 0:00:00]} Nf6 {[%emt 0:00:00]} 5. O-O {[%emt 0:00:09]} Be7 {[%emt 0:00:00]} 6. Re1 {[%emt 0:00:19]} b5 {[%emt 0:00:00]} 7. Bb3 {[%emt 0:00:03]} d6 {[%emt 0:00:02]} 8. c3 {[%emt 0:00:27]} O-O {[%emt 0:00:06]} 9. h3 {[%emt 0:00:07]} Nb8 {[%emt 0:00:20]} 10. d4 {[%emt 0:01:24]} Nbd7 {[%emt 0:00:06]} 11. Nbd2 {[%emt 0:10:18]} Bb7 {[%emt 0:01:21]} 12. Bc2 {[%emt 0:02:17]} Re8 {[%emt 0:00:05]} 13. a4 {[%emt 0:03:48]} Bf8 {[%emt 0:00:08]} 14. Bd3 {[%emt 0:01:16]} c6 {[%emt 0:00:11]} 15. b3 {[%emt 0:01:49]} g6 {[%emt 0:00:15]} 16. Bb2 {[%emt 0:00:53]} Rc8 {[%emt 0:01:11]} 17. Qc2 {[%emt 0:08:53]} Nh5 {[%emt 0:00:52]} 18. Bf1 {[%emt 0:05:41]} Bg7 {[%emt 0:03:09]} 19. g3 {[%emt 0:07:31]} Qb6 $11 {[%emt 0:02:17]} 20. Qd3 {[%emt 0:25:53]} d5 {[%emt 0:16:21]} 21. exd5 {[%emt 0:05:46]} cxd5 {[%emt 0:05:11]} 22. axb5 {[%emt 0:02:15]} e4 {[%emt 0:17:15]} 23. Qe2 {[%emt 0:00:05]} a5 {[%emt 0:01:45]} 24. Nh4 {[%emt 0:02:39]} e3 {[%emt 0:16:03]} 25. Ndf3 {[%emt 0:02:36]} Ndf6 {[%emt 0:00:34]} 26. Ne5 {[%emt 0:03:43]} exf2+ {[%emt 0:11:47]} 27. Qxf2 {[%emt 0:00:10]} Ne4 {[%emt 0:02:00]} 28. Rxe4 {[%emt 0:13:11]} dxe4 {[%emt 0:00:42]} 29. Nc4 {[%emt 0:01:41]} Qc7 {[%emt 0:02:27]} 30. Kh2 {[%emt 0:01:08]} Bh6 {[%emt 0:03:48]} 31. b6 {[%emt 0:00:26]} Qe7 {[%emt 0:02:20]} 32. Ne3 {[%emt 0:00:45]} Qd6 {[%emt 0:04:49]} 33. Nhg2 {[%emt 0:00:40]} Qxb6 {[%emt 0:00:54]} 34. Bc4 {[%emt 0:00:30]} Qc7 {[%emt 0:01:50]} 35. Rf1 {[%emt 0:00:25]} Re7 {[%emt 0:00:27]} 36. Bc1 {[%emt 0:00:34]} Bg7 {[%emt 0:03:15]} 37. Ba3 {[%emt 0:00:34]} Rd7 {[%emt 0:00:10]} 38. Bc5 {[%emt 0:00:27]} Re8 {[%emt 0:03:01]} 39. Be2 {[%emt 0:00:18]} Nf6 {[%emt 0:00:28]} 40. Nf4 {[%emt 0:00:08]} Nd5 {[%emt 0:00:52]} 41. Nfxd5 {[%emt 0:31:00]} Bxd5 {[%emt 0:30:03]} 42. Bb5 {[%emt 0:00:36]} Bc6 {[%emt 0:00:33]} 43. Bc4 {[%emt 0:00:17]} h5 {[%emt 0:00:13]} 44. h4 {[%emt 0:00:21]} Rb8 {[%emt 0:00:46]} 45. Qe2 {[%emt 0:00:38]} Kh7 {[%emt 0:01:30]} 46. Kh3 {[%emt 0:00:54]} Qb7 {[%emt 0:01:24]} 47. g4 {[%emt 0:00:00]} hxg4+ {[%emt 0:00:45]} 48. Qxg4 {[%emt 0:00:18]} Bb5 {[%emt 0:00:39]} 49. h5 {[%emt 0:00:37]} Bxc4 {[%emt 0:00:29]} 50. bxc4 {[%emt 0:00:47]} Qc6 {[%emt 0:00:25]} 51. hxg6+ {[%emt 0:00:37]} fxg6 {[%emt 0:00:32]} 52. Kg3 {[%emt 0:00:32]} Qc7+ {[%emt 0:00:41]} 53. Kh3 {[%emt 0:00:23]} Rf7 {[%emt 0:00:42]} 54. Bd6 {[%emt 0:00:34]} Rxf1 {[%emt 0:01:33]} 55. Bxc7 {[%emt 0:00:11]} Rf3+ {[%emt 0:00:05]} 56. Qxf3 {[%emt 0:00:39]} 1-0

[Event "Moscow Open RSSU Cup 2020"]
[Site "Moscow"]
[Date "2020.01.29"]
[Round "5.16"]
[White "Gritsayeva, Oksana"]
[Black "Bykova, Anastasia"]
[Result "1/2-1/2"]
[ECO "B11"]
[WhiteElo "2383"]
[BlackElo "2247"]
[Annotator "NA"]
[PlyCount "167"]
[EventDate "2020.01.25"]
[EventType "swiss"]
[EventCountry "RUS"]
[SourceTitle "playchess.com"]
[Source "ChessBase"]
[SourceQuality "1"]
[TimeControl "40/5400+30:1800+30"]

1. e4 {[%emt 0:00:00]} c6 {[%emt 0:00:00]} 2. Nc3 {[%emt 0:00:00]} d5 {[%emt 0:00:00]} 3. Nf3 {[%emt 0:00:00]} dxe4 {[%emt 0:00:00]} 4. Nxe4 {[%emt 0:00:00]} Nf6 {[%emt 0:00:00]} 5. Nxf6+ {[%emt 0:01:32]} exf6 {[%emt 0:00:00]} 6. Bc4 {[%emt 0:03:04]} Bd6 {[%emt 0:00:33]} 7. Qe2+ {[%emt 0:01:18]} Qe7 {[%emt 0:00:05]} 8. Qxe7+ {[%emt 0:00:29]} Kxe7 {[%emt 0:00:03]} 9. O-O {[%emt 0:00:47]} Re8 {[%emt 0:00:34]} 10. Re1+ {[%emt 0:04:50]} Kf8 {[%emt 0:00:09]} 11. Rxe8+ {[%emt 0:00:11]} Kxe8 {[%emt 0:00:06]} 12. d4 {[%emt 0:01:51]} Bg4 {[%emt 0:01:58]} 13. Nd2 {[%emt 0:01:29]} Bf5 {[%emt 0:00:40]} 14. Bb3 {[%emt 0:00:13]} Nd7 {[%emt 0:05:51]} 15. Nc4 {[%emt 0:00:55]} Bc7 {[%emt 0:00:24]} 16. Ne3 {[%emt 0:00:57]} Be4 {[%emt 0:10:11]} 17. Bd2 {[%emt 0:02:19]} a5 $14 {[%emt 0:18:04]} 18. a4 {[%emt 0:04:31]} Kf8 {[%emt 0:02:22]} 19. f3 {[%emt 0:02:28]} Bg6 {[%emt 0:00:20]} 20. Nc4 {[%emt 0:01:22]} b6 {[%emt 0:07:20]} 21. Kf2 {[%emt 0:09:55]} f5 {[%emt 0:02:34]} 22. g3 {[%emt 0:01:51]} Rd8 {[%emt 0:08:55]} 23. Rd1 {[%emt 0:02:27]} f6 {[%emt 0:01:39]} 24. Na3 {[%emt 0:05:13]} Bf7 {[%emt 0:04:29]} 25. Bxf7 {[%emt 0:00:12]} Kxf7 {[%emt 0:00:02]} 26. Nc4 {[%emt 0:03:16]} Nf8 {[%emt 0:01:27]} 27. Bf4 {[%emt 0:02:58]} Bxf4 {[%emt 0:01:06]} 28. gxf4 {[%emt 0:00:07]} Ne6 {[%emt 0:02:27]} 29. Nxb6 {[%emt 0:01:55]} Nxf4 {[%emt 0:04:45]} 30. Nc4 {[%emt 0:00:39]} Ra8 {[%emt 0:07:40]} 31. b3 {[%emt 0:02:46]} g6 {[%emt 0:01:14]} 32. Re1 {[%emt 0:03:13]} Ne6 {[%emt 0:02:57]} 33. Ke3 {[%emt 0:02:24]} f4+ {[%emt 0:00:24]} 34. Kd3 {[%emt 0:01:31]} Rd8 {[%emt 0:00:56]} 35. c3 {[%emt 0:04:11]} Rd5 {[%emt 0:01:12]} 36. Nd2 {[%emt 0:01:34]} g5 {[%emt 0:05:05]} 37. Kc4 {[%emt 0:03:57]} h5 {[%emt 0:00:30]} 38. b4 {[%emt 0:07:00]} axb4 {[%emt 0:00:12]} 39. Kxb4 {[%emt 0:00:17]} g4 {[%emt 0:00:39]} 40. Rg1 {[%emt 0:01:06]} f5 {[%emt 0:01:02]} 41. Nc4 {[%emt 0:31:12]} Kf6 {[%emt 0:33:51]} 42. Ne5 {[%emt 0:02:15]} c5+ {[%emt 0:02:13]} 43. Kc4 {[%emt 0:00:05]} Rd8 {[%emt 0:01:25]} 44. Nc6 {[%emt 0:01:16]} Rd6 {[%emt 0:00:51]} 45. d5 {[%emt 0:01:10]} Nc7 {[%emt 0:00:31]} 46. Kxc5 {[%emt 0:01:27]} Rxd5+ {[%emt 0:00:04]} 47. Kb6 {[%emt 0:00:07]} Ne6 {[%emt 0:01:16]} 48. a5 {[%emt 0:02:00]} Rd6 {[%emt 0:01:30]} 49. Kb5 {[%emt 0:04:57]} Rd5+ {[%emt 0:00:03]} 50. Kb4 {[%emt 0:02:45]} Rd6 {[%emt 0:01:15]} 51. Na7 {[%emt 0:00:54]} Nc7 {[%emt 0:02:30]} 52. c4 {[%emt 0:00:54]} Rd3 {[%emt 0:00:19]} 53. Kc5 {[%emt 0:00:55]} Ra3 {[%emt 0:02:14]} 54. Nc6 {[%emt 0:01:36]} gxf3 {[%emt 0:00:31]} 55. Kb6 {[%emt 0:01:17]} Ne6 {[%emt 0:00:15]} 56. Nb4 {[%emt 0:03:32]} Nd4 {[%emt 0:00:45]} 57. a6 {[%emt 0:01:22]} Ra4 {[%emt 0:00:26]} 58. Nd5+ {[%emt 0:01:01]} Ke5 {[%emt 0:00:01]} 59. a7 {[%emt 0:00:40]} Kd6 {[%emt 0:01:01]} 60. Nc7 {[%emt 0:01:21]} Rb4+ {[%emt 0:00:16]} 61. Nb5+ {[%emt 0:00:21]} Nxb5 {[%emt 0:00:11]} 62. cxb5 {[%emt 0:00:51]} Ra4 {[%emt 0:00:02]} 63. Rf1 {[%emt 0:00:18]} Ke5 {[%emt 0:00:19]} 64. Kb7 {[%emt 0:00:47]} Ke4 {[%emt 0:00:07]} 65. b6 {[%emt 0:00:18]} Ke3 {[%emt 0:00:26]} 66. a8=Q {[%emt 0:00:07]} Rxa8 {[%emt 0:00:03]} 67. Kxa8 {[%emt 0:00:10]} Ke2 {[%emt 0:00:16]} 68. Ra1 {[%emt 0:00:37]} f2 {[%emt 0:00:03]} 69. b7 {[%emt 0:00:18]} f1=Q {[%emt 0:00:05]} 70. Rxf1 {[%emt 0:00:07]} Kxf1 {[%emt 0:00:02]} 71. b8=Q {[%emt 0:00:07]} f3 {[%emt 0:00:06]} 72. Qf4 {[%emt 0:01:29]} f2 {[%emt 0:00:51]} 73. Qf3 {[%emt 0:02:27]} h4 {[%emt 0:01:51]} 74. Qxf5 {[%emt 0:01:19]} Kg2 {[%emt 0:00:48]} 75. Qc2 {[%emt 0:01:27]} Kg1 {[%emt 0:00:36]} 76. Qc5 {[%emt 0:00:21]} Kg2 {[%emt 0:00:18]} 77. Qg5+ {[%emt 0:00:45]} Kxh2 {[%emt 0:00:37]} 78. Qf4+ {[%emt 0:00:22]} Kg2 {[%emt 0:00:21]} 79. Qg4+ {[%emt 0:00:05]} Kh2 {[%emt 0:00:35]} 80. Qxh4+ {[%emt 0:00:39]} Kg2 {[%emt 0:00:06]} 81. Qg4+ {[%emt 0:00:04]} Kh2 {[%emt 0:00:12]} 82. Qf3 {[%emt 0:00:04]} Kg1 {[%emt 0:00:03]} 83. Qg3+ {[%emt 0:00:05]} Kh1 {[%emt 0:00:05]} 84. Qxf2 {[%emt 0:00:04]} 1/2-1/2

[Event "Moscow Open RSSU Cup 2020"]
[Site "Moscow"]
[Date "2020.01.29"]
[Round "5.17"]
[White "Protopopova, Anastasiya"]
[Black "Guseva, Marina"]
[Result "0-1"]
[ECO "E11"]
[WhiteElo "2233"]
[BlackElo "2379"]
[Annotator "NA"]
[PlyCount "128"]
[EventDate "2020.01.25"]
[EventType "swiss"]
[EventCountry "RUS"]
[SourceTitle "playchess.com"]
[Source "ChessBase"]
[SourceQuality "1"]
[TimeControl "40/5400+30:1800+30"]

1. d4 {[%emt 0:00:00]} Nf6 {[%emt 0:00:06]} 2. c4 {[%emt 0:00:00]} e6 {[%emt 0:00:03]} 3. g3 {[%emt 0:00:00]} d5 {[%emt 0:00:09]} 4. Bg2 {[%emt 0:00:00]} Bb4+ {[%emt 0:00:05]} 5. Bd2 {[%emt 0:00:24]} Be7 {[%emt 0:00:22]} 6. Nf3 {[%emt 0:00:26]} O-O {[%emt 0:00:08]} 7. O-O {[%emt 0:00:05]} c6 {[%emt 0:00:07]} 8. Qc2 {[%emt 0:00:19]} Nbd7 {[%emt 0:00:10]} 9. a4 {[%emt 0:05:11]} b6 {[%emt 0:06:47]} 10. a5 {[%emt 0:02:12]} Ba6 {[%emt 0:00:08]} 11. b3 {[%emt 0:02:00]} Ne4 {[%emt 0:03:14]} 12. Ne5 {[%emt 0:05:33]} Nxe5 {[%emt 0:02:33]} ({Reject} 12... Nxd2 $6 13. Nxc6 Nxb3 {[%mdl 64] Double Attack} 14. Nxd8 $16) 13. Bxe4 {[%emt 0:00:20]} Ng6 $11 {[%emt 0:09:22]} 14. Bf3 {[%emt 0:18:32]} dxc4 {[%emt 0:02:57]} 15. Bc3 {[%emt 0:02:03]} Qd7 {[%emt 0:16:57]} 16. Nd2 {[%emt 0:06:56]} cxb3 {[%emt 0:00:24]} 17. Qxb3 {[%emt 0:01:50]} Bb5 {[%emt 0:01:49]} 18. Nc4 {[%emt 0:02:05]} Rab8 {[%emt 0:04:33]} 19. axb6 {[%emt 0:08:26]} axb6 {[%emt 0:00:06]} 20. Na3 {[%emt 0:02:31]} Bxa3 {[%emt 0:01:42]} 21. Qxa3 {[%emt 0:00:22]} Ne7 {[%emt 0:03:40]} 22. Rfd1 {[%emt 0:07:10]} Nd5 {[%emt 0:02:25]} 23. Be1 {[%emt 0:00:28]} f5 {[%emt 0:03:34]} 24. e3 {[%emt 0:00:41]} h6 {[%emt 0:05:12]} 25. Bg2 {[%emt 0:01:07]} Kh7 {[%emt 0:01:08]} 26. Rdc1 {[%emt 0:05:01]} Rfd8 {[%emt 0:01:41]} 27. Ra2 {[%emt 0:04:10]} Qe8 {[%emt 0:00:10]} 28. Rca1 {[%emt 0:04:00]} Bc4 {[%emt 0:00:35]} 29. Rc2 {[%emt 0:00:18]} Ra8 {[%emt 0:01:00]} 30. Qb2 {[%emt 0:00:21]} Rxa1 {[%emt 0:00:54]} 31. Qxa1 {[%emt 0:00:02]} Ra8 {[%emt 0:00:31]} 32. Qc1 {[%emt 0:00:18]} b5 {[%emt 0:00:17]} 33. f3 {[%emt 0:01:42]} Qe7 {[%emt 0:03:18]} 34. Rb2 {[%emt 0:07:55]} Qa3 {[%emt 0:03:02]} 35. Bd2 {[%emt 0:01:00]} Qd3 {[%emt 0:01:07]} 36. Bf1 {[%emt 0:03:01]} Qxf1+ {[%emt 0:00:12]} 37. Qxf1 {[%emt 0:00:01]} Bxf1 {[%emt 0:00:06]} 38. Kxf1 {[%emt 0:00:02]} Nb6 {[%emt 0:04:26]} 39. Ke2 {[%emt 0:00:06]} Nc4 {[%emt 0:00:35]} 40. Rc2 {[%emt 0:00:05]} Kg6 {[%emt 0:02:05]} 41. e4 {[%emt 0:30:22]} Ra1 {[%emt 0:35:15]} 42. Bc1 {[%emt 0:00:53]} Rb1 {[%emt 0:03:27]} 43. Rc3 {[%emt 0:00:40]} Kf7 {[%emt 0:00:38]} 44. g4 {[%emt 0:01:07]} fxe4 {[%emt 0:01:04]} 45. fxe4 {[%emt 0:00:04]} Ke7 {[%emt 0:00:15]} 46. Kd1 {[%emt 0:04:06]} Ra1 {[%emt 0:00:51]} 47. h4 {[%emt 0:00:59]} Ra2 {[%emt 0:04:02]} 48. Rc2 {[%emt 0:00:30]} Ra8 {[%emt 0:04:28]} 49. h5 {[%emt 0:01:18]} Rd8 {[%emt 0:00:18]} 50. Ke2 {[%emt 0:04:17]} Rxd4 {[%emt 0:00:14]} 51. Kf3 {[%emt 0:01:02]} Kf6 {[%emt 0:02:09]} 52. Bf4 {[%emt 0:02:24]} e5 {[%emt 0:00:30]} 53. Bc1 {[%emt 0:00:12]} Rd3+ {[%emt 0:01:32]} 54. Kf2 {[%emt 0:00:14]} Rd1 {[%emt 0:00:36]} 55. Kf3 {[%emt 0:00:44]} Rd3+ {[%emt 0:01:30]} 56. Kg2 {[%emt 0:00:03]} Ke6 {[%emt 0:00:18]} 57. g5 {[%emt 0:00:12]} hxg5 {[%emt 0:00:06]} 58. Bxg5 {[%emt 0:00:08]} c5 {[%emt 0:02:44]} 59. h6 {[%emt 0:00:49]} gxh6 {[%emt 0:00:06]} 60. Bxh6 {[%emt 0:00:03]} Kd6 {[%emt 0:00:26]} 61. Bf8+ {[%emt 0:00:13]} Kc6 {[%emt 0:00:11]} 62. Rc1 {[%emt 0:00:57]} Re3 {[%emt 0:00:46]} 63. Rf1 {[%emt 0:00:13]} Rxe4 {[%emt 0:00:15]} 64. Rf6+ {[%emt 0:00:14]} Kd5 {[%emt 0:00:04]} 0-1

[Event "Moscow Open RSSU Cup 2020"]
[Site "Moscow"]
[Date "2020.01.30"]
[Round "6.1"]
[White "Martinez Alcantara, Jose Eduardo"]
[Black "Bykov, Egor"]
[Result "1/2-1/2"]
[ECO "C92"]
[WhiteElo "2606"]
[BlackElo "2384"]
[Annotator "RC"]
[PlyCount "84"]
[EventDate "2020.01.25"]
[EventType "swiss"]
[EventCountry "RUS"]
[SourceTitle "playchess.com"]
[Source "ChessBase"]
[SourceQuality "1"]
[TimeControl "40/5400+30:1800+30"]

1. e4 {[%emt 0:01:31]} e5 {[%emt 0:00:00]} 2. Nf3 {[%emt 0:00:41]} Nc6 {[%emt 0:00:00]} 3. Bb5 {[%emt 0:00:03]} a6 {[%emt 0:00:00]} 4. Ba4 {[%emt 0:00:02]} Nf6 {[%emt 0:00:00]} 5. O-O {[%emt 0:00:03]} Be7 {[%emt 0:00:03]} 6. Re1 {[%emt 0:00:03]} b5 {[%emt 0:00:09]} 7. Bb3 {[%emt 0:00:04]} d6 {[%emt 0:00:07]} 8. c3 {[%emt 0:00:04]} O-O {[%emt 0:00:08]} 9. h3 {[%emt 0:00:01]} Re8 {[%emt 0:01:05]} 10. d4 {[%emt 0:02:42]} Bb7 {[%emt 0:00:27]} 11. Nbd2 {[%emt 0:00:33]} exd4 {[%emt 0:00:57]} 12. cxd4 {[%emt 0:00:02]} Nd7 {[%emt 0:00:40]} 13. Nf1 {[%emt 0:00:26]} Na5 {[%emt 0:00:45]} 14. Bc2 {[%emt 0:00:01]} Bf6 {[%emt 0:00:42]} 15. Ng3 {[%emt 0:02:47]} g6 {[%emt 0:01:17]} 16. Rb1 {[%emt 0:11:04]} c5 {[%emt 0:02:04]} 17. d5 {[%emt 0:00:05]} Nc4 {[%emt 0:02:02]} 18. b3 {[%emt 0:00:02]} Ncb6 {[%emt 0:01:11]} 19. Bf4 {[%emt 0:05:01]} Ne5 {[%emt 0:03:16]} 20. Nxe5 {[%emt 0:00:58]} Bxe5 {[%emt 0:00:35]} 21. Bxe5 {[%emt 0:00:02]} Rxe5 {[%emt 0:03:16]} 22. a4 {[%emt 0:03:21]} Qh4 {[%emt 0:06:28]} 23. Qd2 {[%emt 0:02:21]} b4 {[%emt 0:11:33]} 24. Kh2 {[%emt 0:02:51]} Rae8 {[%emt 0:15:19]} 25. f4 {[%emt 0:07:03]} R5e7 {[%emt 0:00:08]} 26. Qf2 {[%emt 0:00:01]} f5 {[%emt 0:22:13]} 27. a5 {[%emt 0:03:27]} Nd7 {[%emt 0:02:29]} 28. exf5 {[%emt 0:00:08]} Nf6 {[%emt 0:01:22]} 29. Kg1 {[%emt 0:07:47]} Rxe1+ {[%emt 0:02:54]} 30. Rxe1 {[%emt 0:00:10]} Rxe1+ {[%emt 0:00:10]} 31. Qxe1 {[%emt 0:00:02]} Bxd5 {[%emt 0:00:50]} 32. Qe3 {[%emt 0:11:41]} Bf7 {[%emt 0:00:32]} 33. Be4 {[%emt 0:09:02]} d5 {[%emt 0:07:26]} 34. Bd3 {[%emt 0:00:02]} c4 {[%emt 0:01:35]} 35. Bf1 {[%emt 0:01:53]} d4 {[%emt 0:02:26]} 36. Qxd4 {[%emt 0:01:00]} Qxg3 {[%emt 0:00:21]} 37. Qxf6 {[%emt 0:00:06]} Qe3+ {[%emt 0:00:32]} 38. Kh1 {[%emt 0:00:01]} Qxf4 {[%emt 0:00:12]} 39. Bxc4 {[%emt 0:01:34]} Qc1+ {[%emt 0:03:14]} 40. Kh2 {[%emt 0:00:04]} Qf4+ {[%emt 0:00:24]} 41. Kg1 {[%emt 0:30:17]} Qe3+ {[%emt 0:31:00]} 42. Kh1 {[%emt 0:04:38]} Qc1+ {[%emt 0:00:06]} 1/2-1/2

[Event "Moscow Open RSSU Cup 2020"]
[Site "Moscow"]
[Date "2020.01.30"]
[Round "6.5"]
[White "Mokshanov, Alexey"]
[Black "Petrosyan, Manuel"]
[Result "0-1"]
[ECO "B51"]
[WhiteElo "2449"]
[BlackElo "2590"]
[Annotator "RC"]
[PlyCount "66"]
[EventDate "2020.01.25"]
[EventType "swiss"]
[EventCountry "RUS"]
[SourceTitle "playchess.com"]
[Source "ChessBase"]
[SourceQuality "1"]
[TimeControl "40/5400+30:1800+30"]

1. e4 {[%emt 0:00:00]} c5 {[%emt 0:00:35]} 2. Nf3 {[%emt 0:00:00]} d6 {[%emt 0:00:06]} 3. Bb5+ {[%emt 0:00:00]} Nd7 {[%emt 0:00:45]} 4. O-O {[%emt 0:00:06]} a6 {[%emt 0:00:14]} 5. Bd3 {[%emt 0:00:13]} Ngf6 {[%emt 0:00:14]} 6. c3 {[%emt 0:01:35]} b5 {[%emt 0:00:22]} 7. Bc2 {[%emt 0:00:25]} Bb7 {[%emt 0:00:14]} 8. Re1 {[%emt 0:01:16]} e5 {[%emt 0:00:45]} 9. d4 {[%emt 0:00:37]} Be7 {[%emt 0:00:13]} 10. b3 {[%emt 0:06:00]} cxd4 {[%emt 0:07:08]} 11. cxd4 {[%emt 0:00:17]} O-O {[%emt 0:05:20]} 12. Bb2 {[%emt 0:02:34]} Re8 {[%emt 0:00:25]} 13. Nbd2 {[%emt 0:14:29]} Bf8 {[%emt 0:00:19]} 14. d5 {[%emt 0:01:21]} a5 {[%emt 0:16:41]} 15. a3 {[%emt 0:01:51]} b4 {[%emt 0:12:44]} 16. axb4 {[%emt 0:10:45]} axb4 {[%emt 0:00:16]} 17. Bd3 {[%emt 0:00:42]} Nc5 {[%emt 0:02:03]} 18. Bf1 {[%emt 0:16:02]} Rxa1 {[%emt 0:10:59]} 19. Qxa1 {[%emt 0:01:36]} Qa8 {[%emt 0:00:30]} 20. Qb1 {[%emt 0:03:09]} Ba6 {[%emt 0:00:06]} 21. Ng5 {[%emt 0:03:02]} Bxf1 {[%emt 0:03:05]} 22. Rxf1 {[%emt 0:02:01]} Qa6 {[%emt 0:00:07]} 23. f3 {[%emt 0:09:40]} Qe2 {[%emt 0:05:05]} 24. Qe1 {[%emt 0:01:16]} Qd3 {[%emt 0:00:25]} 25. Nh3 {[%emt 0:00:13]} Nxb3 {[%emt 0:01:30]} 26. Nxb3 {[%emt 0:00:32]} Qxb3 {[%emt 0:00:06]} 27. Bc1 {[%emt 0:01:21]} Nd7 {[%emt 0:02:09]} 28. Bd2 {[%emt 0:00:35]} Rb8 {[%emt 0:00:11]} 29. Qb1 {[%emt 0:01:26]} Qc4 {[%emt 0:00:36]} 30. Nf2 {[%emt 0:00:23]} Nc5 {[%emt 0:00:33]} 31. Be3 {[%emt 0:00:54]} b3 {[%emt 0:04:32]} 32. Rc1 {[%emt 0:02:16]} Qe2 {[%emt 0:00:50]} 33. Re1 {[%emt 0:02:00]} Qa2 {[%emt 0:00:16]} 0-1

[Event "Moscow Open RSSU Cup 2020"]
[Site "Moscow"]
[Date "2020.01.31"]
[Round "7.16"]
[White "Bodnaruk, Anastasia"]
[Black "Bykova, Anastasia"]
[Result "1-0"]
[ECO "B07"]
[WhiteElo "2411"]
[BlackElo "2247"]
[Annotator "RC"]
[PlyCount "95"]
[EventDate "2020.01.25"]
[EventType "swiss"]
[EventCountry "RUS"]
[SourceTitle "playchess.com"]
[Source "ChessBase"]
[SourceQuality "1"]
[TimeControl "40/5400+30:1800+30"]

1. e4 {[%emt 0:00:00]} d6 {[%emt 0:00:33]} 2. d4 {[%emt 0:00:00]} Nf6 {[%emt 0:00:05]} 3. Nc3 {[%emt 0:00:00]} g6 {[%emt 0:00:08]} 4. Be3 {[%emt 0:08:37]} a6 {[%emt 0:00:05]} 5. Qd2 {[%emt 0:02:25]} b5 {[%emt 0:01:03]} 6. f3 {[%emt 0:00:21]} Bb7 {[%emt 0:00:12]} 7. O-O-O {[%emt 0:04:15]} Nbd7 {[%emt 0:01:07]} 8. g4 {[%emt 0:04:34]} b4 {[%emt 0:04:26]} 9. Nce2 {[%emt 0:12:05]} Nxe4 {[%emt 0:05:36]} 10. fxe4 {[%emt 0:00:57]} Bxe4 {[%emt 0:00:02]} 11. Ng3 {[%emt 0:00:05]} Bxh1 12. Nxh1 {[%emt 0:00:04]} Bg7 {[%emt 0:03:01]} 13. Bh6 {[%emt 0:12:51]} O-O {[%emt 0:00:18]} 14. Nf3 {[%emt 0:11:00]} a5 {[%emt 0:04:36]} 15. d5 {[%emt 0:05:53]} e5 {[%emt 0:09:06]} 16. Ng3 {[%emt 0:05:42]} Qf6 {[%emt 0:08:23]} 17. Bg2 {[%emt 0:07:05]} Bxh6 {[%emt 0:07:55]} 18. Qxh6 {[%emt 0:00:02]} Qf4+ {[%emt 0:00:25]} 19. Qxf4 {[%emt 0:00:04]} exf4 {[%emt 0:00:02]} 20. Ne2 {[%emt 0:03:06]} Ne5 {[%emt 0:00:22]} 21. Nxe5 {[%emt 0:02:50]} dxe5 {[%emt 0:00:01]} 22. d6 {[%emt 0:00:24]} Ra7 {[%emt 0:01:52]} 23. d7 {[%emt 0:05:00]} Rd8 {[%emt 0:00:01]} 24. c4 {[%emt 0:04:42]} c5 {[%emt 0:15:09]} 25. Bc6 {[%emt 0:00:10]} Rc7 {[%emt 0:07:32]} 26. Bb5 {[%emt 0:01:13]} g5 {[%emt 0:00:19]} 27. Rd5 {[%emt 0:03:08]} f6 {[%emt 0:00:05]} 28. Kd2 {[%emt 0:00:34]} e4 {[%emt 0:00:20]} 29. Ba4 {[%emt 0:06:33]} h5 {[%emt 0:19:19]} 30. h3 {[%emt 0:00:03]} hxg4 {[%emt 0:00:15]} 31. hxg4 {[%emt 0:00:00]} Kf7 {[%emt 0:08:22]} 32. Nc1 {[%emt 0:00:05]} Ke7 {[%emt 0:00:04]} 33. Nb3 {[%emt 0:00:28]} Rh8 {[%emt 0:00:16]} 34. Nxc5 {[%emt 0:01:21]} Rxc5 {[%emt 0:01:53]} 35. Rxc5 {[%emt 0:00:02]} Rh2+ {[%emt 0:00:01]} 36. Ke1 {[%emt 0:01:08]} Rh1+ {[%emt 0:01:38]} 37. Ke2 {[%emt 0:01:09]} f3+ {[%emt 0:01:53]} 38. Ke3 {[%emt 0:00:28]} Re1+ {[%emt 0:00:56]} 39. Kf2 {[%emt 0:00:09]} Re2+ {[%emt 0:00:14]} 40. Kg3 {[%emt 0:00:49]} Rg2+ {[%emt 0:01:21]} 41. Kh3 {[%emt 0:30:01]} e3 {[%emt 0:31:00]} 42. Rc8 {[%emt 0:00:53]} Rd2 {[%emt 0:00:02]} 43. Re8+ {[%emt 0:00:05]} Kf7 {[%emt 0:00:01]} 44. Rxe3 {[%emt 0:00:27]} f5 {[%emt 0:01:27]} 45. gxf5 {[%emt 0:00:59]} Rd4 {[%emt 0:00:29]} 46. Bc6 {[%emt 0:00:35]} g4+ {[%emt 0:00:23]} 47. Kg3 {[%emt 0:00:01]} Kf6 {[%emt 0:00:10]} 48. Bd5 {[%emt 0:00:17]} 1-0

[Event "Moscow Open RSSU Cup 2020"]
[Site "Moscow"]
[Date "2020.02.01"]
[Round "8.9"]
[White "Makhmutov, Rail"]
[Black "Zakhartsov, Vladimir"]
[Result "1/2-1/2"]
[ECO "B31"]
[WhiteElo "2403"]
[BlackElo "2507"]
[Annotator "RC"]
[PlyCount "70"]
[EventDate "2020.01.25"]
[EventType "swiss"]
[EventCountry "RUS"]
[SourceTitle "playchess.com"]
[Source "ChessBase"]
[SourceQuality "1"]
[TimeControl "40/5400+30:1800+30"]

1. e4 {[%emt 1:30:30]} c5 {[%emt 0:13:14]} 2. Nf3 {[%emt 0:00:00]} Nc6 {[%emt 0:02:15]} 3. Bb5 {[%emt 0:00:00]} g6 {[%emt 0:00:19]} 4. Bxc6 {[%emt 0:00:00]} bxc6 {[%emt 0:00:21]} 5. O-O {[%emt 0:00:00]} Bg7 {[%emt 0:00:11]} 6. Re1 {[%emt 0:00:00]} Nh6 {[%emt 0:01:29]} 7. c3 {[%emt 0:00:00]} f6 {[%emt 0:03:25]} 8. d4 {[%emt 0:00:00]} cxd4 {[%emt 0:00:22]} 9. cxd4 {[%emt 0:00:00]} Nf7 {[%emt 0:01:24]} 10. Qc2 {[%emt 0:00:00]} O-O {[%emt 0:00:46]} 11. Be3 {[%emt 0:00:00]} Bb7 {[%emt 0:01:37]} 12. Nbd2 {[%emt 0:00:00]} e5 {[%emt 0:03:51]} 13. Rab1 {[%emt 0:00:00]} d5 {[%emt 0:04:46]} 14. dxe5 {[%emt 0:00:00]} fxe5 {[%emt 0:00:58]} 15. Bc5 {[%emt 0:00:00]} Re8 {[%emt 0:00:06]} 16. Re3 {[%emt 0:00:00]} Bc8 {[%emt 0:02:24]} 17. Ra3 {[%emt 0:00:00]} a6 {[%emt 0:00:54]} 18. Ne1 {[%emt 0:00:00]} Ng5 {[%emt 0:18:10]} 19. f3 {[%emt 0:00:00]} Ne6 {[%emt 0:01:54]} 20. Nd3 {[%emt 0:00:00]} Bd7 {[%emt 0:01:58]} 21. Bf2 {[%emt 0:00:00]} Kh8 {[%emt 0:00:55]} 22. Nb3 {[%emt 0:00:00]} dxe4 {[%emt 0:02:27]} 23. fxe4 {[%emt 0:00:00]} Nf4 {[%emt 0:00:22]} 24. Nbc5 {[%emt 0:00:00]} Bg4 {[%emt 0:01:00]} 25. Nxf4 {[%emt 0:00:00]} exf4 {[%emt 0:00:02]} 26. Rd3 {[%emt 0:00:00]} Qg5 {[%emt 0:01:33]} 27. Bd4 {[%emt 0:00:00]} Bxd4+ {[%emt 0:04:16]} 28. Rxd4 {[%emt 0:00:00]} Rad8 {[%emt 0:01:06]} 29. Rxd8 {[%emt 0:00:00]} Rxd8 {[%emt 0:00:01]} 30. Qc3+ {[%emt 0:00:00]} Kg8 {[%emt 0:00:03]} 31. e5 {[%emt 0:00:00]} Be2 {[%emt 0:06:53]} 32. Qb3+ {[%emt 0:04:17]} Rd5 {[%emt 0:02:23]} 33. Qb8+ {[%emt 0:00:38]} Rd8 {[%emt 0:00:02]} 34. Qb3+ {[%emt 0:00:39]} Rd5 {[%emt 0:06:53]} 35. Qb8+ {[%emt 0:00:03]} Rd8 {[%emt 0:00:25]} 1/2-1/2